[Event "FIDE Zonal 4-2 Open 2023"]
[Site "Dimbroko"]
[Date "2023.03.27"]
[Round "3.3"]
[White "Bobby Ballah"]
[Black "Thomas, Saah"]
[Result "0-1"]
[ECO "B23"]
[WhiteElo "1914"]
[BlackElo "1916"]
[Annotator "TA"]
[PlyCount "76"]
[EventDate "2023.03.25"]
[EventType "swiss"]
[EventCountry "IVO"]
[SourceTitle "playchess.com"]
[Source "ChessBase"]
[SourceQuality "1"]
[TimeControl "40/5400+30:1800+30"]

{[%evp 12,76,-11,-31,-26,-32,-43,-37,-24,-18,8,-59,-1,-31,48,50,51,50,62,0,0,-156,-174,-166,-174,-218,-214,-239,-224,-276,-253,-274,-275,-266,-261,-268,-218,-208,-216,-218,-198,-202,-185,-250,-239,-410,-395,-531,-516,-527,-569,-585,-567,-997,-1011,-910,-847,-1108,-1028,-5252,-5143,-29973,-29973,-29988,-29989,-29997,-29998]} 1. e4 {[%emt 0:00:05]} c5 {[%emt 0:00:06]} 2. Nc3 {[%emt 0:00:13]} Nc6 {[%emt 0:01:31]} 3. Bb5 {[%emt 0:00:57]} Nd4 {[%emt 0:00:54]} 4. Bc4 {[%emt 0:00:34]} g6 {[%emt 0:00:22]} 5. f4 {[%emt 0:00:57]} Bg7 {[%emt 0:00:40][%cal Bf8g7,Bg7d4,Bd4e3,Be3c1,Bc1b2,Bb2c3][%mdl 32]} 6. Nf3 {[%emt 0:00:08]} e6 {[%emt 0:00:18]} 7. O-O {[%emt 0:01:09]} Ne7 {[%emt 0:00:18] B23: Closed Sicilian: Lines without g3.} 8. d3 {[%emt 0:03:12]} O-O {[%emt 0:00:36]} 9. Nxd4 {[%emt 0:02:00]} Bxd4+ {[%emt 0:00:27] Black is slightly better.} 10. Kh1 {[%emt 0:00:03][%cal Of4f5]} a6 {[%emt 0:00:14]} 11. e5 {[%emt 0:01:59]} (11. Bb3 $11) 11... b5 {[%emt 0:00:23]} (11... d5 $15 12. Bb3 Bxc3 13. bxc3 b6) 12. Bb3 {[%emt 0:00:01] Threatens to win with Ne4.} ({Don't play} 12. Qf3 Qc7 13. Bb3 (13. Qxa8 $2 Bb7 $19) 13... Bb7 $15) (12. Ne4 $5) 12... Bb7 {[%emt 0:01:19]} (12... Bxc3 $15 13. bxc3 Bb7) 13. Ne4 $14 {[%emt 0:02:53]} Nf5 {[%emt 0:03:06] [#]} 14. c3 $146 {[%emt 0:09:54]} (14. Nf6+ {is interesting.} Kg7 15. Qe1 c4 16. dxc4 d6 17. c3) ({Predecessor:} 14. Nf6+ Kg7 15. Qe1 d6 16. c3 dxe5 17. fxe5 c4 18. dxc4 Bb6 19. Rxf5 exf5 20. Bh6+ {1-0 Ringoir,T (2185)-Klekowski,M (2096) Rewal op 11th 2006 (5)}) 14... Be3 {[%emt 0:00:48]} 15. Rf3 {[%emt 0:00:48]} (15. Qe2 $14 Bxc1 16. Raxc1 (16. Rfxc1 Qh4 $11)) 15... Bxc1 $11 {[%emt 0:00:48]} 16. Nf6+ $2 {[%emt 0:01:15] [#] White is on the road to losing.} ({White should try} 16. Rxc1 $11 d6 17. Nf6+ Kg7 18. Rh3) 16... Qxf6 $3 $17 {[%emt 0:01:49][%mdl 512]} 17. exf6 {[%emt 0:00:09]} Bxb2 {[%emt 0:00:06]} 18. Rb1 {[%emt 0:03:38]} Bxc3 {[%emt 0:00:18]} ({Stronger than} 18... Bxf3 19. Qe1 $17) 19. Rh3 {[%emt 0:03:18] White is weak on the dark squares} Bxf6 {[%emt 0:00:24] A strong pair of Bishops.} 20. Qg4 {[%emt 0:02:10]} d5 {[%emt 0:00:47][%cal Bd7d5,Bd5d4][%mdl 32]} 21. Bd1 {[%emt 0:06:48]} Rab8 {[%emt 0:01:01]} 22. Qe2 {[%emt 0:01:26]} d4 {[%emt 0:00:19]} 23. Qe1 {[%emt 0:00:21]} Rfe8 {[%emt 0:00:50]} 24. Bf3 {[%emt 0:00:22]} Bxf3 {[%emt 0:00:50]} 25. Rxf3 {[%emt 0:00:24]} h5 {[%emt 0:00:20]} 26. Qa5 {[%emt 0:02:18]} Ra8 {[%emt 0:00:03]} 27. Rf2 {[%emt 0:04:58]} (27. a4 $142 Reb8 28. h3) 27... c4 $19 {[%emt 0:00:34]} 28. dxc4 $2 {[%emt 0:02:22]} (28. a4) 28... bxc4 {[%emt 0:00:02][%cal Bb5c4,Bc4c3][%mdl 32]} 29. Qa4 {[%emt 0:00:39]} c3 {[%emt 0:00:26]} 30. Rf3 {[%emt 0:01:16]} Reb8 {[%emt 0:00:27][%cal Be8b8,Bb8b2,Bb2d2][%mdl 32]} 31. Rc1 {[%emt 0:07:23]} Rb2 {[%emt 0:00:16] Strongly threatening ...Rab8.} 32. Kg1 {[%emt 0:03:05]} Rab8 {[%emt 0:03:03]} 33. Qxa6 {[%emt 0:03:16]} Rd2 {[%emt 0:00:12]} 34. Rd3 {[%emt 0:01:03]} Ne3 {[%emt 0:00:43]} 35. Rxe3 {[%emt 0:07:57]} dxe3 {[%emt 0:00:15]} 36. Kf1 {[%emt 0:00:58]} Rbb2 {[%emt 0:01:17] Black mates.} 37. Ke1 {[%emt 0:04:35]} Rxg2 {[%emt 0:00:20]} 38. Kf1 {[%emt 0:02:32]} Rbf2+ {[%emt 0:00:11] A superb game by Thomas.   Weighted Error Value: White=0.90/Black=0.11 (very precise)} 0-1

[Event "FIDE Zonal 4-2 Open 2023"]
[Site "Dimbroko"]
[Date "2023.03.27"]
[Round "3.4"]
[White "Ble, Kouko Hubert"]
[Black "Barcon, Harmon"]
[Result "0-1"]
[ECO "E06"]
[WhiteElo "1825"]
[BlackElo "1928"]
[Annotator "TA"]
[PlyCount "101"]
[EventDate "2023.03.25"]
[EventType "swiss"]
[EventCountry "IVO"]
[SourceTitle "playchess.com"]
[Source "ChessBase"]
[SourceQuality "1"]
[TimeControl "40/5400+30:1800+30"]

{[%evp 12,101,21,16,28,26,19,-1,34,0,20,-6,-7,-8,50,19,92,22,68,10,86,78,98,96,105,107,107,99,117,107,150,142,181,172,183,138,174,129,118,109,122,109,114,111,110,108,100,114,121,103,97,-45,-50,-114,0,-311,0,-242,-233,-405,-393,-344,-154,-144,-147,-140,-137,-141,-106,-97,-64,-73,-65,-74,-70,-299,-201,-355,-325,-279,-282,-750,-402,-497,-339,-668,-664,-1306,-1218,-1335,-1004,-1435]} 1. Nf3 {[%emt 0:00:03]} d5 {[%emt 0:00:14]} 2. d4 {[%emt 0:00:52]} Nf6 {[%emt 0:00:04]} 3. c4 {[%emt 0:00:26]} c6 {[%emt 0:00:02]} 4. g3 {[%emt 0:00:13]} e6 {[%emt 0:00:35]} 5. Bg2 {[%emt 0:00:13]} Be7 {[%emt 0:00:14]} 6. O-O {[%emt 0:00:14]} O-O {[%emt 0:00:14]} 7. Nc3 {[%emt 0:00:31]} Re8 {[%emt 0:00:26] 7...a5 gains popularity. E06: Closed Catalan: Early deviations.} 8. e3 {[%emt 0:04:45]} Nbd7 {[%emt 0:00:40]} 9. Qc2 {[%emt 0:03:32]} Bd6 {[%emt 0:03:18] The position is equal.} 10. e4 {[%emt 0:00:12]} dxe4 {[%emt 0:00:05]} 11. Nxe4 {[%emt 0:00:16]} Nxe4 {[%emt 0:00:08]} 12. Qxe4 {[%emt 0:00:18]} Nf6 {[%emt 0:00:16]} (12... e5 $1 $11) 13. Qe2 {[%emt 0:00:29]} h6 {[%emt 0:00:19]} (13... e5 $11) 14. b3 {[%emt 0:02:31]} (14. Ne5 $16) 14... a5 {[%emt 0:02:25] [#]} (14... e5 $11 {was preferrable.}) 15. a4 $146 {[%emt 0:00:38]} (15. Ne5 $14) ({Predecessor:} 15. Ne5 a4 16. Bd2 c5 17. Bc3 axb3 18. axb3 Rxa1 19. Rxa1 Qb6 20. dxc5 Bxc5 21. b4 Be7 22. Ng4 Nxg4 23. Qxg4 {1-0 Palacios Perez,J (1920)-Bayarri Ros,F (1750) Valencia Autonomico Norte-B 2009 (5.8)}) 15... Rb8 {[%emt 0:00:35]} (15... e5 $11 {remains equal.}) 16. Bd2 {[%emt 0:01:02]} Bc7 {[%emt 0:02:41][%cal Oe6e5]} 17. Rfd1 {[%emt 0:00:33]} Ra8 {[%emt 0:03:53]} 18. Bc3 {[%emt 0:00:27]} Qe7 {[%emt 0:00:57]} 19. Re1 {[%emt 0:00:48]} Bd7 {[%emt 0:01:25]} 20. Qb2 {[%emt 0:01:23]} Bd8 {[%emt 0:01:30]} 21. b4 {[%emt 0:01:25][%cal Bb3b4,Bb4b5][%mdl 32]} Bc8 {[%emt 0:00:30]} 22. b5 {[%emt 1:20:39]} Qc7 {[%emt 0:06:24]} 23. Rac1 {[%emt 0:00:00]} Bd7 {[%emt 0:01:19]} 24. c5 {[%emt 0:00:00]} cxb5 {[%emt 0:08:01]} 25. axb5 {[%emt 0:00:00]} Nd5 {[%emt 0:00:08]} 26. b6 {[%emt 0:00:00]} Qc8 {[%emt 0:00:14]} 27. Ne5 {[%emt 0:00:00]} Bc6 {[%emt 0:00:38]} 28. Bd2 {[%emt 0:00:00]} Bf6 {[%emt 0:01:33]} 29. Nc4 {[%emt 0:00:00]} a4 {[%emt 0:02:48]} 30. Nd6 {[%emt 0:00:00][%csl LRc8,LRe8]} Qd7 {[%emt 0:00:17]} 31. Ra1 {[%emt 0:00:00]} (31. Nxe8 $16 Qxe8 32. Ra1) 31... Red8 $15 {[%emt 0:01:52][%cal Oa4a3]} 32. Bf1 {[%emt 0:00:00]} (32. Ra3 $15) 32... Be7 {[%emt 0:01:42]} (32... a3 $1 $17 {[%cal Ra3b2]} 33. Rxa3 Bxd4) 33. Nb5 $2 {[%emt 0:00:00][%mdl 8192] [#]} (33. Nc4 $11 {and White stays safe.}) 33... Bf6 $2 {[%emt 0:15:01]} (33... Nxb6 $1 $19 {[%cal Od7d5] ...Qd5! is the strong threat.} 34. Re5 (34. cxb6 $2 {perishes.} Qd5 $19) 34... Bf6) 34. Ra3 $2 {[%emt 0:00:00] [#]} (34. Nd6 $1 $11 {and White has nothing to worry.}) 34... Ne7 $1 $19 {[%emt 0:07:33] White must now prevent ...Qd5.} 35. Bc4 {[%emt 0:00:00] Against Qd5} (35. Nd6 Nf5 36. Nxf5) 35... Bxd4 {[%emt 0:08:19]} 36. Bc3 {[%emt 0:00:00][%cal Rb5d4]} Bxc3 {[%emt 0:01:31]} (36... Bxc5 $19 {is more deadly.} 37. Nc7 Bxa3 38. Qxa3 Nd5 39. Bxd5 Bxd5 40. Nxa8 Rxa8) 37. Rxc3 $17 {[%emt 0:00:00]} Nd5 $40 {[%emt 0:00:25][%cal Be7d5,Bd5f6,Bf6e4][%mdl 160] Prevents Nc7. White is in trouble.} 38. Rd3 {[%emt 0:00:00]} Ra5 {[%emt 0:01:40][%cal Rc6b5]} 39. Rb1 {[%emt 0:00:00]} Qe7 {[%emt 0:00:42]} 40. Qa3 {[%emt 0:00:00]} Nf6 {[%emt 0:03:01]} 41. Rxd8+ {[%emt 0:29:57]} Qxd8 {[%emt 0:30:28]} 42. Qb4 $1 {[%emt 0:01:09]} Ra8 {[%emt 0:00:19]} 43. Nc7 $2 {[%emt 0:04:27] This costs White the game.} (43. Na7 $1 $15 Be4 44. Re1) 43... Rc8 {[%emt 0:01:19]} 44. Qe1 $2 {[%emt 0:00:00]} (44. Bb5 {was worth a try.} Bxb5 45. Nxb5) 44... Ne4 {[%emt 0:00:00] ...Ng5 would be deadly.} 45. Rd1 {[%emt 0:00:00]} Qf6 {[%emt 0:00:00]} ({Don't go for} 45... Qe7 $2 46. Bb5 Bxb5 47. Nxb5 $19) 46. Qe3 {[%emt 0:00:00]} (46. Bb5 Bxb5 47. Nxb5 Nxc5 48. Qe3) 46... Nxc5 {[%emt 0:00:00][%mdl 64] Deflection} 47. Be2 {[%emt 0:00:00]} (47. Qxc5 $2 {too greedy.} Qf3 $19) 47... Nd7 {[%emt 0:00:00] aiming for ...Qb2.} 48. Rc1 $2 {[%emt 0:07:27]} (48. Bb5 Ne5 49. Bxc6 Nxc6 50. Qf4) 48... Qb2 $19 {[%emt 0:28:45] Black is clearly winning.} 49. Rxc6 {[%emt 0:00:00]} bxc6 {[%emt 0:00:00]} 50. Ba6 {[%emt 0:01:00]} Qxb6 {[%emt 0:01:00]} 51. Qxb6 {[%emt 0:00:00] Weighted Error Value: White=0.84/Black=0.56} 0-1

[Event "FIDE Zonal 4-2 Open 2023"]
[Site "Dimbroko"]
[Date "2023.03.27"]
[Round "3.5"]
[White "Foday W. Kondoh"]
[Black "Harold Evans"]
[Result "1-0"]
[ECO "D07"]
[WhiteElo "1727"]
[BlackElo "1714"]
[Annotator "NA COMBH"]
[PlyCount "103"]
[EventDate "2023.03.25"]
[EventType "swiss"]
[EventCountry "IVO"]
[SourceTitle "playchess.com"]
[Source "ChessBase"]
[SourceQuality "1"]
[TimeControl "40/5400+30:1800+30"]

1. d4 {[%emt 0:00:01]} d5 {[%emt 0:00:36]} 2. Nf3 {[%emt 0:00:37]} Nc6 {[%emt 0:00:16]} 3. c4 {[%emt 0:00:46]} Bg4 {[%emt 0:01:01]} 4. cxd5 {[%emt 0:00:59]} Qxd5 {[%emt 0:00:44]} 5. Nc3 {[%emt 0:01:36]} Qh5 {[%emt 0:00:11]} 6. Qa4 {[%emt 0:12:42]} O-O-O {[%emt 0:01:34]} 7. d5 {[%emt 0:01:49]} Bxf3 {[%emt 0:00:56]} 8. exf3 {[%emt 0:02:08]} Rxd5 {[%emt 0:00:20]} 9. Nxd5 {[%emt 0:01:36]} Qxd5 {[%emt 0:00:22]} 10. Bc4 {[%emt 0:03:10]} Qe5+ {[%emt 0:00:29]} 11. Be3 {[%emt 0:00:29]} e6 {[%emt 0:01:19]} 12. O-O {[%emt 0:00:41]} Bd6 {[%emt 0:00:48]} 13. f4 {[%emt 0:00:18]} Qa5 {[%emt 0:00:24]} 14. Bb5 {[%emt 0:06:28]} Qxa4 {[%emt 0:01:30]} 15. Bxa4 {[%emt 0:00:03]} Nge7 {[%emt 0:00:24]} 16. a3 {[%emt 0:01:26]} a6 {[%emt 0:00:33]} 17. b4 {[%emt 0:00:25]} b5 {[%emt 0:00:57]} 18. Bc2 {[%emt 0:00:58]} Nd5 {[%emt 0:01:33]} 19. Be4 {[%emt 0:01:29]} Nce7 {[%emt 0:00:16]} 20. g3 {[%emt 0:04:07]} Kd7 {[%emt 0:01:16]} 21. Bd4 {[%emt 0:02:50]} f6 {[%emt 0:00:08]} 22. Rfe1 {[%emt 0:02:29]} Nc6 {[%emt 0:01:06]} 23. Bc5 {[%emt 0:04:43]} Bxc5 {[%emt 0:02:18]} 24. Bxd5 {[%emt 0:01:05]} Bxf2+ {[%emt 0:01:18]} 25. Kxf2 {[%emt 0:00:33]} exd5 {[%emt 0:00:31]} 26. Re2 {[%emt 0:02:10]} a5 {[%emt 0:00:55]} 27. Rc2 {[%emt 0:06:13]} Rc8 {[%emt 0:04:36]} 28. Rc5 {[%emt 0:01:48]} Kd6 {[%emt 0:04:06]} 29. Rxb5 {[%emt 0:02:52]} axb4 {[%emt 0:01:02]} 30. axb4 {[%emt 0:01:09]} Nd4 {[%emt 0:03:49]} 31. Ra6+ {[%emt 0:02:20]} c6 {[%emt 0:00:33]} 32. Rb7 {[%emt 0:00:14]} Rc7 {[%emt 0:01:17]} 33. Rxc7 {[%emt 0:00:50]} Kxc7 {[%emt 0:00:03]} 34. Ra7+ {[%emt 0:00:33]} Kb6 {[%emt 0:00:02]} 35. Rxg7 {[%emt 0:00:31]} Nc2 {[%emt 0:00:10]} 36. Rxh7 {[%emt 0:00:42]} Nxb4 {[%emt 0:00:13]} 37. Rf7 {[%emt 0:00:57]} d4 {[%emt 0:01:04]} 38. h4 {[%emt 0:00:28]} c5 {[%emt 0:01:12]} 39. Rxf6+ {[%emt 0:00:52]} Kb5 {[%emt 0:00:11]} 40. h5 {[%emt 0:02:36]} c4 {[%emt 0:00:01]} 41. Rf5+ {[%emt 0:31:20]} Ka4 {[%emt 0:30:21]} 42. Rf8 {[%emt 0:08:47]} c3 {[%emt 0:00:39]} 43. Rc8 {[%emt 0:01:26]} Kb3 {[%emt 0:03:40]} 44. h6 {[%emt 0:01:33]} d3 {[%emt 0:01:39]} 45. h7 {[%emt 0:01:33]} d2 {[%emt 0:00:57]} 46. Rxc3+ {[%emt 0:00:50]} Kxc3 {[%emt 0:00:14]} 47. h8=Q+ {[%emt 0:00:15]} Kc2 {[%emt 0:01:25]} 48. Qc8+ {[%emt 0:00:27]} Kd1 {[%emt 0:02:25]} 49. Qc4 {[%emt 0:03:42]} Nc2 {[%emt 0:00:29]} 50. Qf1+ {[%emt 0:03:51]} Ne1 {[%emt 0:00:06]} 51. Qe2+ {[%emt 0:00:26]} Kc1 {[%emt 0:00:35]} 52. Qxe1+ {[%emt 0:00:15]} 1-0

[Event "FIDE Zonal 4-2 Open 2023"]
[Site "Dimbroko"]
[Date "2023.03.27"]
[Round "3.6"]
[White "Egbe, Kossi Thierry"]
[Black "Joel O. Ebiekuta"]
[Result "1-0"]
[ECO "C01"]
[WhiteElo "1740"]
[BlackElo "1855"]
[Annotator "NA RC COMBH"]
[PlyCount "65"]
[EventDate "2023.03.25"]
[EventType "swiss"]
[EventCountry "IVO"]
[SourceTitle "playchess.com"]
[Source "ChessBase"]
[SourceQuality "1"]
[TimeControl "40/5400+30:1800+30"]

1. e4 {[%emt 0:00:29]} e6 {[%emt 0:00:35]} 2. d4 {[%emt 0:00:20]} d5 {[%emt 0:03:50]} 3. exd5 {[%emt 0:00:18]} exd5 {[%emt 0:00:18]} 4. Bd3 {[%emt 0:00:12]} Bd6 {[%emt 0:01:14]} 5. h3 {[%emt 0:00:13]} Ne7 {[%emt 0:00:24]} 6. Nf3 {[%emt 0:00:56]} O-O {[%emt 0:00:38]} 7. O-O {[%emt 0:00:20]} c6 {[%emt 0:00:51]} 8. Re1 {[%emt 0:01:12]} Ng6 {[%emt 0:02:24]} 9. Bg5 {[%emt 0:02:55]} Qc7 {[%emt 0:02:18]} 10. Nbd2 {[%emt 0:02:22]} h6 {[%emt 0:00:40]} 11. Be3 {[%emt 0:02:11]} Nd7 {[%emt 0:00:20]} 12. Nf1 {[%emt 0:00:34]} Nf6 {[%emt 0:00:49]} 13. Bxg6 {[%emt 0:10:33]} fxg6 {[%emt 0:02:12]} 14. Ne5 {[%emt 0:04:55]} g5 {[%emt 0:08:41]} 15. Qd3 {[%emt 0:05:25]} Nh5 {[%emt 0:03:10]} 16. Qg6 {[%emt 0:09:58]} Nf4 {[%emt 0:08:05]} 17. Bxf4 {[%emt 0:00:11]} Rxf4 {[%emt 0:00:15]} 18. Ng3 {[%emt 0:05:02]} Rf6 {[%emt 0:05:38]} 19. Qd3 {[%emt 0:00:54]} Bd7 {[%emt 0:02:46]} 20. Nh5 {[%emt 0:03:52]} Re6 {[%emt 0:12:29]} 21. Nxd7 {[%emt 0:10:24]} Qxd7 {[%emt 0:00:30]} 22. Ng3 {[%emt 0:04:42]} Rf8 {[%emt 0:04:21]} 23. Rxe6 {[%emt 0:02:25]} Qxe6 {[%emt 0:00:28]} 24. Qe2 {[%emt 0:03:20]} Qf7 {[%emt 0:09:53]} 25. Re1 {[%emt 0:05:41]} Kh8 {[%emt 0:04:12]} 26. Nf1 {[%emt 0:01:39]} Qf5 {[%emt 0:04:50]} 27. f3 {[%emt 0:04:45]} h5 {[%emt 0:04:52]} 28. c3 {[%emt 0:03:00]} h4 {[%emt 0:01:09]} 29. Qe6 {[%emt 0:01:12]} Qxe6 {[%emt 0:03:47]} 30. Rxe6 {[%emt 0:00:16]} Rf6 {[%emt 0:00:17]} 31. Re8+ {[%emt 0:01:24]} Kh7 {[%emt 0:00:17]} 32. Ne3 {[%emt 0:01:25]} Kg6 {[%emt 0:04:20]} 33. Ng4 {[%emt 0:00:27]} 1-0

[Event "FIDE Zonal 4-2 Open 2023"]
[Site "Dimbroko"]
[Date "2023.03.27"]
[Round "3.7"]
[White "Nean, Franck Anderson"]
[Black "Amako Marc Arnold"]
[Result "1-0"]
[ECO "E18"]
[WhiteElo "1851"]
[BlackElo "1647"]
[Annotator "NA COMBH"]
[PlyCount "127"]
[EventDate "2023.03.25"]
[EventType "swiss"]
[EventCountry "IVO"]
[SourceTitle "playchess.com"]
[Source "ChessBase"]
[SourceQuality "1"]
[TimeControl "40/5400+30:1800+30"]

1. d4 {[%emt 0:00:12]} d5 {[%emt 0:00:39]} 2. Nf3 {[%emt 0:00:05]} Nf6 {[%emt 0:00:10]} 3. g3 {[%emt 0:00:22]} e6 {[%emt 0:02:13]} 4. Bg2 {[%emt 0:00:11]} Be7 {[%emt 0:00:08]} 5. O-O {[%emt 0:00:30]} O-O {[%emt 0:00:10]} 6. c4 {[%emt 0:00:13]} b6 {[%emt 0:00:28]} 7. Nc3 {[%emt 0:00:56]} Bb7 {[%emt 0:00:13]} 8. Ne5 {[%emt 0:00:27]} Nbd7 {[%emt 0:02:27]} 9. b3 {[%emt 0:02:25]} c5 {[%emt 0:00:38]} 10. e3 {[%emt 0:01:57]} Rc8 {[%emt 0:03:43]} 11. Bb2 {[%emt 0:01:15]} Ne4 {[%emt 0:04:38]} 12. Nxe4 {[%emt 0:02:53]} dxe4 {[%emt 0:00:05]} 13. Nxd7 {[%emt 0:02:43]} Qxd7 {[%emt 0:01:45]} 14. dxc5 {[%emt 0:00:14]} Qxd1 {[%emt 0:01:19]} 15. Raxd1 {[%emt 0:00:17]} Bxc5 {[%emt 0:01:32]} 16. Rd7 {[%emt 0:00:05]} Bc6 {[%emt 0:00:13]} 17. Rxa7 {[%emt 0:10:16]} Rfd8 {[%emt 0:00:13]} 18. Ba3 {[%emt 0:01:07]} Rd2 {[%emt 0:02:07]} 19. Bxc5 {[%emt 0:00:23]} bxc5 {[%emt 0:00:05]} 20. Ra5 {[%emt 0:02:26]} Ba8 {[%emt 0:00:34]} 21. Rb1 {[%emt 0:01:20]} f5 {[%emt 0:02:57]} 22. Bf1 {[%emt 0:00:44]} Kf7 {[%emt 0:00:39]} 23. a3 {[%emt 0:00:48]} g5 {[%emt 0:00:38]} 24. b4 {[%emt 0:01:55]} f4 {[%emt 0:00:54]} 25. Rxc5 {[%emt 0:02:40]} Rxc5 {[%emt 0:09:21]} 26. bxc5 {[%emt 0:00:04]} Ra2 {[%emt 0:00:03]} 27. gxf4 {[%emt 0:05:11]} gxf4 {[%emt 0:00:25]} 28. exf4 {[%emt 0:05:09]} Rxa3 {[%emt 0:00:55]} 29. Rb6 {[%emt 0:05:43]} Ra7 {[%emt 0:00:59]} 30. h4 {[%emt 0:05:38]} Rc7 {[%emt 0:01:14]} 31. Bh3 {[%emt 0:04:40]} Bc6 {[%emt 0:01:09]} 32. Kh2 {[%emt 0:01:44]} Bd7 {[%emt 0:00:16]} 33. Rd6 {[%emt 0:02:29]} Ke7 {[%emt 0:01:08]} 34. Rd4 {[%emt 0:00:04]} Bc6 {[%emt 0:01:58]} 35. Bg2 {[%emt 0:01:58]} Bb7 {[%emt 0:00:20]} 36. Bxe4 {[%emt 0:01:18]} Bxe4 {[%emt 0:00:11]} 37. Rxe4 {[%emt 0:00:01]} Rxc5 {[%emt 0:00:08]} 38. Kg3 {[%emt 0:00:44]} Kf6 {[%emt 0:00:01]} 39. Kg4 {[%emt 0:03:35]} Ra5 {[%emt 0:01:04]} 40. h5 {[%emt 0:03:09]} Ra2 {[%emt 0:00:14]} 41. Kf3 {[%emt 0:32:08]} Rc2 {[%emt 0:30:15]} 42. Ke3 {[%emt 0:01:36]} h6 {[%emt 0:01:10]} 43. Kf3 {[%emt 0:08:52]} Rc3+ {[%emt 0:01:32]} 44. Kg4 {[%emt 0:00:16]} Rc1 {[%emt 0:00:09]} 45. Kf3 {[%emt 0:07:55]} Rh1 {[%emt 0:00:37]} 46. Re5 {[%emt 0:00:33]} Rc1 {[%emt 0:00:35]} 47. c5 {[%emt 0:00:43]} Rc4 {[%emt 0:00:10]} 48. Ke3 {[%emt 0:01:07]} Kf7 {[%emt 0:00:22]} 49. f5 {[%emt 0:04:21]} exf5 {[%emt 0:00:23]} 50. Kd3 {[%emt 0:00:52]} Rc1 {[%emt 0:00:30]} 51. Kd4 {[%emt 0:04:46]} Rd1+ {[%emt 0:03:21]} 52. Kc4 {[%emt 0:00:25]} Rc1+ {[%emt 0:00:43]} 53. Kd5 {[%emt 0:00:32]} Rd1+ {[%emt 0:00:12]} 54. Kc6 {[%emt 0:00:16]} Kf6 {[%emt 0:00:06]} 55. Rd5 {[%emt 0:04:37]} Rc1 {[%emt 0:00:11]} 56. Kd7 {[%emt 0:00:23]} Rc2 {[%emt 0:01:12]} 57. f4 {[%emt 0:00:38]} Rc4 {[%emt 0:01:26]} 58. Rd6+ {[%emt 0:00:19]} Kg7 {[%emt 0:00:03]} 59. c6 {[%emt 0:00:12]} Rxf4 {[%emt 0:00:50]} 60. c7 {[%emt 0:00:18]} Rc4 {[%emt 0:04:55]} 61. c8=Q {[%emt 0:00:13]} Rxc8 {[%emt 0:00:38]} 62. Kxc8 {[%emt 0:00:03]} f4 {[%emt 0:00:08]} 63. Kd7 {[%emt 0:00:52]} Kf7 {[%emt 0:00:46]} 64. Rxh6 {[%emt 0:01:07]} 1-0

[Event "FIDE Zonal 4-2 Open 2023"]
[Site "Dimbroko"]
[Date "2023.03.27"]
[Round "3.8"]
[White "AKA JUSTIN JEAN-ROBERT KOUMI"]
[Black "Semeko, Lumen Paco"]
[Result "0-1"]
[ECO "B29"]
[WhiteElo "1833"]
[BlackElo "1483"]
[Annotator "NA COMBH"]
[PlyCount "113"]
[EventDate "2023.03.25"]
[EventType "swiss"]
[EventCountry "IVO"]
[SourceTitle "playchess.com"]
[Source "ChessBase"]
[SourceQuality "1"]
[TimeControl "40/5400+30:1800+30"]

1. e4 {[%emt 0:00:04]} c5 {[%emt 0:00:02]} 2. Nf3 {[%emt 0:00:17]} Nf6 {[%emt 0:00:24]} 3. e5 {[%emt 0:01:49]} Nd5 {[%emt 0:00:10]} 4. c4 {[%emt 0:01:43]} Nc7 {[%emt 0:00:21]} 5. d4 {[%emt 0:01:21]} cxd4 {[%emt 0:00:15]} 6. Nxd4 {[%emt 0:02:36]} Nc6 {[%emt 0:00:51]} 7. Nxc6 {[%emt 0:04:30]} bxc6 {[%emt 0:00:12]} 8. Nc3 {[%emt 0:00:28]} g6 {[%emt 0:00:19]} 9. Be3 {[%emt 0:03:22]} Bg7 {[%emt 0:00:36]} 10. f4 {[%emt 0:00:22]} d6 {[%emt 0:00:53]} 11. exd6 {[%emt 0:03:56]} Qxd6 {[%emt 0:00:46]} 12. Qxd6 {[%emt 0:14:15]} exd6 {[%emt 0:00:34]} 13. Rd1 {[%emt 0:01:47]} Bxc3+ {[%emt 0:00:54]} 14. bxc3 {[%emt 0:00:14]} d5 {[%emt 0:01:56]} 15. Bd3 {[%emt 0:04:46]} Be6 {[%emt 0:00:40]} 16. cxd5 {[%emt 0:03:54]} Bxd5 {[%emt 0:00:18]} 17. Rd2 {[%emt 0:00:51]} a5 {[%emt 0:11:11]} 18. O-O {[%emt 0:12:19]} O-O {[%emt 0:01:08]} 19. c4 {[%emt 0:03:58]} Be6 {[%emt 0:00:52]} 20. Rb1 {[%emt 0:01:33]} Na6 {[%emt 0:21:24]} 21. a3 {[%emt 0:01:17]} Rfd8 {[%emt 0:09:10]} 22. Be2 {[%emt 0:01:27]} Rxd2 {[%emt 0:01:37]} 23. Bxd2 {[%emt 0:00:21]} Nc5 {[%emt 0:01:34]} 24. Rb6 {[%emt 0:02:04]} Ne4 {[%emt 0:02:58]} 25. Be1 {[%emt 0:01:23]} Nc5 {[%emt 0:07:27]} 26. Rxc6 {[%emt 0:02:04]} Nb3 {[%emt 0:00:57]} 27. Rb6 {[%emt 0:01:48]} Nd4 {[%emt 0:00:57]} 28. Bd3 {[%emt 0:02:22]} Rc8 {[%emt 0:04:09]} 29. Bc3 {[%emt 0:04:49]} Bxc4 {[%emt 0:07:27]} 30. Bxc4 {[%emt 0:01:13]} Rxc4 {[%emt 0:00:33]} 31. Bxd4 {[%emt 0:00:25]} Rxd4 {[%emt 0:00:09]} 32. Ra6 {[%emt 0:02:01]} Ra4 {[%emt 0:00:09]} 33. g3 {[%emt 0:02:09]} Rxa3 {[%emt 0:00:09]} 34. Kg2 {[%emt 0:00:22]} h5 {[%emt 0:00:31]} 35. Kh3 {[%emt 0:00:33]} Kg7 {[%emt 0:00:44]} 36. Kg2 {[%emt 0:00:40]} a4 {[%emt 0:03:32]} 37. Kh3 {[%emt 0:00:12]} Ra2 {[%emt 0:00:17]} 38. Ra5 {[%emt 0:00:52]} a3 {[%emt 0:01:33]} 39. Ra4 {[%emt 0:01:11]} Kf6 {[%emt 0:02:41]} 40. Ra5 {[%emt 0:01:00]} Ke6 {[%emt 0:01:46]} 41. Ra6+ {[%emt 0:30:31]} Ke7 {[%emt 0:31:54]} 42. Ra7+ {[%emt 0:00:17]} Kf6 {[%emt 0:00:13]} 43. Ra6+ {[%emt 0:00:08]} Kg7 {[%emt 0:00:03]} 44. Ra5 {[%emt 0:00:53]} Ra1 {[%emt 0:00:05]} 45. Ra4 {[%emt 0:02:12]} a2 {[%emt 0:00:03]} 46. Ra5 {[%emt 0:00:23]} Kf6 {[%emt 0:02:18]} 47. Ra6+ {[%emt 0:00:38]} Kf5 {[%emt 0:00:06]} 48. Ra4 {[%emt 0:00:38]} Ke6 {[%emt 0:01:44]} 49. Ra6+ {[%emt 0:02:04]} Kd5 {[%emt 0:00:38]} 50. Kh4 {[%emt 0:00:40]} f6 {[%emt 0:01:31]} 51. f5 {[%emt 0:01:00]} gxf5 {[%emt 0:02:08]} 52. Kxh5 {[%emt 0:00:14]} Ke4 {[%emt 0:01:01]} 53. Kg6 {[%emt 0:01:08]} f4 {[%emt 0:03:11]} 54. gxf4 {[%emt 0:11:32]} Kxf4 {[%emt 0:00:28]} 55. Kxf6 {[%emt 0:00:23]} Kg4 {[%emt 0:00:40]} 56. Ke5 {[%emt 0:00:15]} Re1+ {[%emt 0:00:08]} 57. Kd4 {[%emt 0:03:46]} 0-1